fUST/lending_fUST_20250704
["ID","MTS","AMOUNT","RATE_DAILY","PERIOD"]
[369586689,1751632250256,-2016.62,0.00016986,2]
[369586691,1751632250266,-2313.48,0.00016986,2]
[369586693,1751632250276,-460.0,0.00016986,2]
[369586695,1751632250285,-875.87,0.00016986,2]
[369586697,1751632250296,-460.0,0.00016986,2]
[369586699,1751632250305,-520.79,0.00016986,2]
[369586701,1751632250314,-730.21,0.00016986,2]
[369586703,1751632250324,-4799.52,0.00016986,2]
[369586705,1751632250333,-785.99,0.00016986,2]
[369586707,1751632250342,-460.0,0.00016986,2]
[369586709,1751632250351,-874.22,0.00016986,2]
[369586711,1751632250361,-460.0,0.00016986,2]
[369586713,1751632250370,-460.0,0.00016986,2]
[369586715,1751632250379,-460.0,0.00016986,2]
[369586717,1751632250389,-949.0,0.00016986,2]
[369586719,1751632250398,-802.58,0.00016986,2]
[369586721,1751632250408,-460.0,0.00016986,2]
[369586723,1751632250417,-460.0,0.00016986,2]
[369586725,1751632250426,-880.89,0.00016986,2]
[369586726,1751632250435,-469.78,0.00016986,2]
[369586728,1751632250444,-1581.5,0.00016986,2]
[369586730,1751632250454,-460.0,0.00016986,2]
[369586732,1751632250463,-511.2,0.00016986,2]
[369586734,1751632250473,-460.0,0.00016986,2]
[369586736,1751632250482,-460.0,0.00016986,2]
[369586738,1751632250492,-460.0,0.00016986,2]
[369586740,1751632250501,-460.0,0.00016986,2]
[369586742,1751632250511,-297.829588,0.00016986,2]
[369586744,1751632250520,-4933.91,0.00016986,2]
[369586746,1751632250530,-460.0,0.00016986,2]
[369586748,1751632250539,-1008.44,0.00016986,2]
[369586750,1751632250549,-591.74338451,0.00016986,2]
[369586752,1751632250558,-586.21536758,0.00016986,2]
[369586754,1751632250567,-626.0,0.00016986,2]
[369586756,1751632250576,-19262.31079256,0.00017,2]
[369586758,1751632250585,-1496.36,0.00017,2]
[369586760,1751632250595,-330.835161,0.00017,2]
[369586762,1751632250604,-330.835161,0.00017,2]
[369586764,1751632250613,-188.23429,0.00017,2]
[369586766,1751632250623,-188.23429,0.00017,2]
[369586768,1751632250632,-32391.38769162,0.00017,2]
[369586770,1751632250642,-361.03181646,0.00017005,2]
[369586771,1751632250652,-626.0,0.00017014,2]
[369586773,1751632250661,-626.0,0.00017041,2]
[369586775,1751632250670,-626.0,0.00017069,2]
[369586777,1751632250680,-168.0,0.00017071,2]
[369586779,1751632250689,-626.0,0.00017096,2]
[369586781,1751632250698,-151.0,0.000171,2]
[369586783,1751632250707,-626.0,0.00017123,2]
[369586788,1751632250747,-209.0,0.00017135,2]
[369586790,1751632250756,-209.0,0.00017142,2]
[369586792,1751632250765,-626.0,0.00017151,2]
[369586794,1751632250774,-266.8,0.0001716,2]
[369586796,1751632250784,-1456.72226628,0.0001716,2]
[369586798,1751632250793,-273.434016,0.00017176,2]
[369586800,1751632250802,-626.0,0.00017178,2]
[369586802,1751632250811,-626.0,0.00017206,2]
[369586804,1751632250821,-209.0,0.00017222,2]
[369586806,1751632250831,-626.0,0.00017233,2]
[369586808,1751632250840,-930.93,0.0001726,2]
[369586810,1751632250850,-460.0,0.0001726,2]
[369586812,1751632250859,-460.0,0.0001726,2]
[369586814,1751632250869,-599.98403437,0.0001726,2]
[369586816,1751632250877,-460.0,0.0001726,2]
[369586817,1751632250886,-460.0,0.0001726,2]
[369586819,1751632250895,-151.0,0.0001726,2]
[369586821,1751632250905,-151.0,0.0001726,2]
[369586823,1751632250913,-288.5984559,0.0001726,2]
[369586825,1751632250923,-460.0,0.0001726,2]
[369586827,1751632250932,-151.0,0.0001726,2]
[369586829,1751632250941,-151.0,0.0001726,2]
[369586831,1751632250950,-460.0,0.0001726,2]
[369586833,1751632250959,-460.0,0.0001726,2]
[369586835,1751632250969,-460.0,0.0001726,2]
[369586837,1751632250978,-460.0,0.0001726,2]
[369586839,1751632250987,-460.0,0.0001726,2]
[369586841,1751632250996,-460.0,0.0001726,2]
[369586842,1751632251005,-460.0,0.0001726,2]
[369586844,1751632251014,-565.1132145,0.0001726,2]
[369586846,1751632251023,-151.15361421,0.0001726,2]
[369586848,1751632251032,-460.0,0.0001726,2]
[369586850,1751632251041,-460.0,0.0001726,2]
[369586852,1751632251051,-460.0,0.0001726,2]
[369586854,1751632251060,-460.0,0.0001726,2]
[369586856,1751632251069,-460.0,0.0001726,2]
[369586858,1751632251078,-645.14,0.0001726,2]
[369586860,1751632251087,-460.0,0.0001726,2]
[369586862,1751632251097,-475.76138546,0.0001726,2]
[369586864,1751632251106,-460.0,0.0001726,2]
[369586866,1751632251115,-330.835161,0.0001726,2]
[369586868,1751632251124,-330.835161,0.0001726,2]
[369586869,1751632251133,-330.835161,0.0001726,2]
[369586871,1751632251143,-330.835161,0.0001726,2]
[369586873,1751632251152,-460.0,0.0001726,2]
[369586876,1751632251163,-922.62,0.0001726,2]
[369586877,1751632251172,-555.65906925,0.0001726,2]
[369586879,1751632251183,-460.0,0.0001726,2]
[369586881,1751632251193,-698.72,0.0001726,2]
[369586883,1751632251205,-460.0,0.0001726,2]
[369586885,1751632251214,-794.9,0.0001726,2]
[369586887,1751632251223,-460.0,0.0001726,2]
[369586889,1751632251232,-188.23429,0.0001726,2]
[369586891,1751632251242,-188.23429,0.0001726,2]
[369586893,1751632251252,-460.0,0.0001726,2]
[369586895,1751632251261,-188.23429,0.0001726,2]
[369586897,1751632251271,-188.234288,0.0001726,2]
[369586899,1751632251280,-460.0,0.0001726,2]
[369586900,1751632251289,-461.07000061,0.0001726,2]
[369586902,1751632251298,-460.0,0.0001726,2]
[369586904,1751632251307,-460.0,0.0001726,2]
[369586906,1751632251316,-460.0,0.0001726,2]
[369586908,1751632251325,-783.35,0.0001726,2]
[369586910,1751632251335,-460.0,0.0001726,2]
[369586912,1751632251344,-273.77294537,0.0001726,2]
[369586914,1751632251353,-460.0,0.0001726,2]
[369586916,1751632251363,-460.0,0.0001726,2]
[369586918,1751632251372,-491.42533964,0.0001726,2]
[369586920,1751632251381,-462.42164936,0.0001726,2]
[369586922,1751632251390,-460.0,0.0001726,2]
[369586924,1751632251400,-460.0,0.0001726,2]
[369586926,1751632251410,-460.0,0.0001726,2]
[369586928,1751632251419,-460.0,0.0001726,2]
[369586930,1751632251428,-460.0,0.0001726,2]
[369586931,1751632251439,-954.17,0.0001726,2]
[369586933,1751632251448,-762.92,0.0001726,2]
[369586935,1751632251458,-460.0,0.0001726,2]
[369586937,1751632251466,-460.0,0.0001726,2]
[369586939,1751632251475,-460.0,0.0001726,2]
[369586941,1751632251484,-979.12,0.0001726,2]
[369586943,1751632251493,-4685.14,0.0001726,2]
[369586945,1751632251502,-539.68,0.0001726,2]
[369586947,1751632251512,-460.0,0.0001726,2]
[369586949,1751632251521,-1802.25,0.0001726,2]
[369586951,1751632251530,-460.0,0.0001726,2]
[369586953,1751632251539,-1350.61,0.0001726,2]
[369586956,1751632251560,-1573.21,0.0001726,2]
[369586958,1751632251570,-2020.04,0.0001726,2]
[369586960,1751632251580,-1379.15,0.0001726,2]
[369586962,1751632251589,-460.0,0.0001726,2]
[369586964,1751632251599,-460.0,0.0001726,2]
[369586966,1751632251608,-3417.66,0.0001726,2]
[369586967,1751632251618,-1833.8,0.0001726,2]
[369586969,1751632251627,-554.94,0.0001726,2]
[369586972,1751632251637,-704.74,0.0001726,2]
[369586974,1751632251647,-460.0,0.0001726,2]
[369586976,1751632251657,-1085.69,0.0001726,2]
[369586978,1751632251667,-460.0,0.0001726,2]
[369586980,1751632251677,-3286.24,0.0001726,2]
[369586982,1751632251687,-460.0,0.0001726,2]
[369586984,1751632251697,-809.24,0.0001726,2]
[369586986,1751632251706,-803.79,0.0001726,2]
[369586988,1751632251716,-335.04137366,0.0001726,2]
[369586990,1751632251726,-845.36,0.0001726,2]
[369586992,1751632251736,-460.0,0.0001726,2]
[369586993,1751632251746,-1439.73,0.0001726,2]
[369586996,1751632251756,-460.0,0.0001726,2]
[369586998,1751632251766,-460.0,0.0001726,2]
[369587000,1751632251776,-917.22,0.0001726,2]
[369587002,1751632251786,-3338.23,0.0001726,2]
[369587003,1751632251795,-460.0,0.0001726,2]
[369587006,1751632251806,-460.0,0.0001726,2]
[369587008,1751632251816,-1561.43,0.0001726,2]
[369587010,1751632251826,-563.37,0.0001726,2]
[369587012,1751632251836,-460.0,0.0001726,2]
[369587014,1751632251846,-460.0,0.0001726,2]
[369587016,1751632251859,-460.0,0.0001726,2]
[369587018,1751632251872,-730.45,0.0001726,2]
[369587019,1751632251882,-460.0,0.0001726,2]
[369587021,1751632251891,-4363.72,0.0001726,2]
[369587023,1751632251902,-1514.73,0.0001726,2]
[369587025,1751632251911,-460.96,0.0001726,2]
[369587027,1751632251921,-956.36,0.0001726,2]
[369587029,1751632251931,-3095.02,0.0001726,2]
[369587031,1751632251941,-713.22,0.0001726,2]
[369587033,1751632251951,-460.0,0.0001726,2]
[369587035,1751632251960,-746.38,0.0001726,2]
[369587037,1751632251970,-701.45,0.0001726,2]
[369587038,1751632251979,-460.0,0.0001726,2]
[369587039,1751632251990,-758.95,0.0001726,2]
[369587040,1751632252000,-460.0,0.0001726,2]
[369587041,1751632252009,-460.0,0.0001726,2]
[369587042,1751632252020,-709.76,0.0001726,2]
[369587043,1751632252033,-1329.25,0.0001726,2]
[369587044,1751632252043,-2994.18,0.0001726,2]
[369587045,1751632252052,-1029.83,0.0001726,2]
[369587046,1751632252063,-460.0,0.0001726,2]
[369587047,1751632252074,-460.0,0.0001726,2]
[369587048,1751632252091,-808.48,0.0001726,2]
[369587049,1751632252101,-2016.62,0.0001726,2]
[369587050,1751632252111,-2313.48,0.0001726,2]
[369587051,1751632252120,-875.87,0.0001726,2]
[369587052,1751632252130,-460.0,0.0001726,2]
[369587053,1751632252139,-520.79,0.0001726,2]
[369587054,1751632252149,-730.21,0.0001726,2]
[369587055,1751632252159,-4799.52,0.0001726,2]
[369587056,1751632252173,-785.99,0.0001726,2]
[369587057,1751632252183,-460.0,0.0001726,2]
[369587058,1751632252195,-460.0,0.0001726,2]
[369587059,1751632252206,-460.0,0.0001726,2]
[369587060,1751632252216,-460.0,0.0001726,2]
[369587061,1751632252226,-874.22,0.0001726,2]
[369587062,1751632252237,-949.0,0.0001726,2]
[369587063,1751632252246,-802.58,0.0001726,2]
[369587064,1751632252256,-460.0,0.0001726,2]
[369587065,1751632252267,-460.0,0.0001726,2]
[369587066,1751632252277,-880.89,0.0001726,2]
[369587068,1751632252288,-469.78,0.0001726,2]
[369587070,1751632252298,-1581.5,0.0001726,2]
[369587072,1751632252308,-460.0,0.0001726,2]
[369587074,1751632252318,-511.2,0.0001726,2]
[369587076,1751632252328,-460.0,0.0001726,2]
[369587078,1751632252337,-460.0,0.0001726,2]
[369587080,1751632252347,-460.0,0.0001726,2]
[369587082,1751632252357,-4933.91,0.0001726,2]
[369587085,1751632252368,-460.0,0.0001726,2]
[369587087,1751632252377,-1008.44,0.0001726,2]
[369587089,1751632252388,-626.0,0.0001726,2]
[369587091,1751632252397,-326.47813903,0.00017274,2]
[369587093,1751632252407,-626.0,0.00017288,2]
[369587095,1751632252418,-151.0,0.000173,2]
[369587097,1751632252428,-500.0,0.00017311,2]
[369587099,1751632252438,-648.67335826,0.00017315,2]
[369587101,1751632252448,-151.0,0.000174,2]
[369587103,1751632252458,-151.0,0.000174,2]
[369587105,1751632252469,-209.0,0.0001747,2]
[369587107,1751632252479,-445.0,0.00017484,2]
[369587109,1751632252490,-380.05422258,0.00017489,2]
[369587111,1751632252499,-151.0,0.0001749,2]
[369587113,1751632252509,-151.0,0.000175,2]
[369587115,1751632252520,-930.93,0.00017534,2]
[369587118,1751632252531,-460.0,0.00017534,2]
[369587120,1751632252540,-460.0,0.00017534,2]
[369587122,1751632252550,-460.0,0.00017534,2]
[369587124,1751632252560,-460.0,0.00017534,2]
[369587126,1751632252571,-201.785638,0.00017534,2]
[369587128,1751632252581,-460.0,0.00017534,2]
[369587130,1751632252591,-460.0,0.00017534,2]
[369587132,1751632252601,-460.0,0.00017534,2]
[369587134,1751632252612,-460.0,0.00017534,2]
[369587136,1751632252627,-460.0,0.00017534,2]
[369587139,1751632252637,-460.0,0.00017534,2]
[369587141,1751632252648,-460.0,0.00017534,2]
[369587143,1751632252658,-460.0,0.00017534,2]
[369587145,1751632252668,-460.0,0.00017534,2]
[369587147,1751632252678,-460.0,0.00017534,2]
[369587149,1751632252688,-460.0,0.00017534,2]
[369587151,1751632252698,-460.0,0.00017534,2]
[369587153,1751632252710,-645.14,0.00017534,2]
[369587155,1751632252719,-460.0,0.00017534,2]
[369587157,1751632252729,-460.0,0.00017534,2]
[369587159,1751632252740,-330.835161,0.00017534,2]
[369587161,1751632252750,-330.835159,0.00017534,2]
[369587163,1751632252760,-460.0,0.00017534,2]
[369587165,1751632252770,-922.62,0.00017534,2]
[369587167,1751632252780,-460.0,0.00017534,2]
[369587169,1751632252791,-698.72,0.00017534,2]
[369587171,1751632252800,-460.0,0.00017534,2]
[369587173,1751632252811,-794.9,0.00017534,2]
[369587175,1751632252821,-485.05695505,0.00017534,2]
[369587177,1751632252831,-463.17672763,0.00017534,2]
[369587179,1751632252841,-460.0,0.00017534,2]
[369587182,1751632252851,-460.0,0.00017534,2]
[369587184,1751632252861,-460.0,0.00017534,2]
[369587186,1751632252871,-497.09586736,0.00017534,2]
[369587188,1751632252881,-783.35,0.00017534,2]
[369587190,1751632252891,-460.0,0.00017534,2]
[369587192,1751632252902,-460.0,0.00017534,2]
[369587194,1751632252913,-460.0,0.00017534,2]
[369587196,1751632252923,-460.0,0.00017534,2]
[369587198,1751632252934,-460.0,0.00017534,2]
[369587200,1751632252944,-460.0,0.00017534,2]
[369587202,1751632252954,-460.0,0.00017534,2]
[369587204,1751632252966,-460.0,0.00017534,2]
[369587206,1751632252975,-954.17,0.00017534,2]
[369587208,1751632252985,-762.92,0.00017534,2]
[369587210,1751632252995,-460.0,0.00017534,2]
[369587212,1751632253005,-460.0,0.00017534,2]
[369587214,1751632253015,-460.0,0.00017534,2]
[369587216,1751632253025,-979.12,0.00017534,2]
[369587219,1751632253036,-4685.14,0.00017534,2]
[369587220,1751632253047,-539.68,0.00017534,2]
[369587223,1751632253057,-460.0,0.00017534,2]
[369587225,1751632253067,-1802.25,0.00017534,2]
[369587227,1751632253077,-460.0,0.00017534,2]
[369587229,1751632253087,-1350.61,0.00017534,2]
[369587231,1751632253097,-1573.21,0.00017534,2]
[369587233,1751632253107,-2020.04,0.00017534,2]
[369587235,1751632253117,-1379.15,0.00017534,2]
[369587237,1751632253127,-460.0,0.00017534,2]
[369587239,1751632253138,-460.0,0.00017534,2]
[369587241,1751632253148,-3417.66,0.00017534,2]
[369587243,1751632253158,-1833.8,0.00017534,2]
[369587245,1751632253168,-554.94,0.00017534,2]
[369587247,1751632253178,-704.74,0.00017534,2]
[369587249,1751632253188,-460.0,0.00017534,2]
[369587251,1751632253203,-1085.69,0.00017534,2]
[369587253,1751632253213,-460.0,0.00017534,2]
[369587255,1751632253223,-3286.24,0.00017534,2]
[369587257,1751632253235,-809.24,0.00017534,2]
[369587260,1751632253245,-803.79,0.00017534,2]
[369587262,1751632253255,-845.36,0.00017534,2]
[369587264,1751632253265,-460.0,0.00017534,2]
[369587266,1751632253277,-1439.73,0.00017534,2]
[369587268,1751632253286,-460.0,0.00017534,2]
[369587270,1751632253296,-460.0,0.00017534,2]
[369587272,1751632253306,-917.22,0.00017534,2]
[369587274,1751632253316,-3338.23,0.00017534,2]
[369587276,1751632253326,-460.0,0.00017534,2]
[369587278,1751632253336,-460.0,0.00017534,2]
[369587280,1751632253346,-1561.43,0.00017534,2]
[369587282,1751632253357,-563.37,0.00017534,2]
[369587284,1751632253367,-460.0,0.00017534,2]
[369587286,1751632253377,-460.0,0.00017534,2]
[369587288,1751632253388,-460.0,0.00017534,2]
[369587290,1751632253399,-730.45,0.00017534,2]
[369587293,1751632253410,-460.0,0.00017534,2]
[369587315,1751632253604,-4363.72,0.00017534,2]
[369587317,1751632253615,-1514.73,0.00017534,2]
[369587319,1751632253625,-460.96,0.00017534,2]
[369587321,1751632253634,-956.36,0.00017534,2]
[369587323,1751632253644,-3095.02,0.00017534,2]
[369587325,1751632253653,-713.22,0.00017534,2]
[369587327,1751632253663,-460.0,0.00017534,2]
[369587329,1751632253672,-746.38,0.00017534,2]
[369587331,1751632253682,-701.45,0.00017534,2]
[369587333,1751632253691,-460.0,0.00017534,2]
[369587335,1751632253701,-758.95,0.00017534,2]
[369587337,1751632253710,-460.0,0.00017534,2]
[369587339,1751632253719,-460.0,0.00017534,2]
[369587341,1751632253728,-709.76,0.00017534,2]
[369587343,1751632253738,-1329.25,0.00017534,2]
[369587345,1751632253747,-2994.18,0.00017534,2]
[369587347,1751632253756,-1029.83,0.00017534,2]
[369587349,1751632253766,-394.04018953,0.00017534,2]
[369587351,1751632253775,-808.48,0.00017534,2]
[369587352,1751632253784,-504.44109194,0.00017534,2]
[369587355,1751632253793,-2016.62,0.00017534,2]
[369587356,1751632253802,-2313.48,0.00017534,2]
[369587359,1751632253812,-875.87,0.00017534,2]
[369587361,1751632253822,-460.0,0.00017534,2]
[369587363,1751632253831,-520.79,0.00017534,2]
[369587365,1751632253841,-730.21,0.00017534,2]
[369587367,1751632253850,-4799.52,0.00017534,2]
[369587369,1751632253860,-785.99,0.00017534,2]
[369587371,1751632253869,-460.0,0.00017534,2]
[369587372,1751632253878,-335.60995805,0.00017534,2]
[369587374,1751632253888,-460.0,0.00017534,2]
[369587377,1751632253898,-460.0,0.00017534,2]
[369587379,1751632253908,-874.22,0.00017534,2]
[369587380,1751632253917,-949.0,0.00017534,2]
[369587382,1751632253926,-802.58,0.00017534,2]
[369587385,1751632253936,-460.0,0.00017534,2]
[369587387,1751632253947,-460.0,0.00017534,2]
[369587388,1751632253956,-880.89,0.00017534,2]
[369587390,1751632253965,-469.78,0.00017534,2]
[369587392,1751632253975,-1581.5,0.00017534,2]
[369587394,1751632253984,-460.0,0.00017534,2]
[369587396,1751632253993,-511.2,0.00017534,2]
[369587398,1751632254002,-460.0,0.00017534,2]
[369587400,1751632254012,-460.0,0.00017534,2]
[369587402,1751632254022,-460.0,0.00017534,2]
[369587405,1751632254032,-4933.91,0.00017534,2]
[369587406,1751632254041,-460.0,0.00017534,2]
[369587408,1751632254051,-1008.44,0.00017534,2]
[369587410,1751632254060,-266.8,0.00017568,2]
[369587412,1751632254070,-151.0,0.000176,2]
[369587414,1751632254080,-151.0,0.000176,2]
[369587416,1751632254089,-151.0,0.000176,2]
[369587418,1751632254099,-157.0,0.00017643,2]
[369587420,1751632254108,-157.0,0.00017643,2]
[369587422,1751632254117,-161.00066889,0.00017643,2]
[369587424,1751632254127,-318.0,0.00017643,2]
[369587426,1751632254137,-318.0,0.00017643,2]
[369587428,1751632254146,-318.0,0.00017643,2]
[369587430,1751632254156,-318.0,0.00017643,2]
[369587432,1751632254166,-318.0,0.00017643,2]
[369587434,1751632254176,-318.0,0.00017643,2]
[369587436,1751632254185,-318.0,0.00017643,2]
[369587438,1751632254197,-318.0,0.00017643,2]
[369587440,1751632254207,-318.0,0.00017643,2]
[369587442,1751632254216,-318.0,0.00017643,2]
[369587444,1751632254226,-318.0,0.00017643,2]
[369587446,1751632254236,-318.0,0.00017643,2]
[369587448,1751632254246,-318.0,0.00017643,2]
[369587450,1751632254256,-318.0,0.00017643,2]
[369587452,1751632254266,-318.0,0.00017643,2]
[369587454,1751632254275,-318.0,0.00017643,2]
[369587456,1751632254285,-318.0,0.00017643,2]
[369587458,1751632254294,-318.0,0.00017643,2]
[369587460,1751632254304,-268.92827247,0.00017643,2]
[369587462,1751632254313,-154.0,0.00017643,2]
[369587464,1751632254323,-154.0,0.00017643,2]
[369587466,1751632254332,-154.0,0.00017643,2]
[369587468,1751632254342,-318.0,0.00017643,2]
[369587470,1751632254351,-154.0,0.00017643,2]
[369587472,1751632254361,-154.0,0.00017643,2]
[369587474,1751632254370,-166.37182529,0.00017643,2]
[369587476,1751632254379,-318.0,0.00017643,2]
[369587478,1751632254389,-201.31268097,0.00017643,2]
[369587480,1751632254399,-318.0,0.00017643,2]
[369587482,1751632254408,-318.0,0.00017643,2]
[369587484,1751632254418,-318.0,0.00017643,2]
[369587486,1751632254427,-318.0,0.00017643,2]
[369587488,1751632254436,-318.0,0.00017643,2]
[369587490,1751632254445,-318.0,0.00017643,2]
[369587492,1751632254456,-318.0,0.00017643,2]
[369587494,1751632254466,-318.0,0.00017643,2]
[369587496,1751632254476,-318.0,0.00017643,2]
[369587498,1751632254486,-318.0,0.00017643,2]
[369587500,1751632254495,-318.0,0.00017643,2]
[369587502,1751632254505,-500.0,0.00017671,2]
[369587504,1751632254514,-500.92668472,0.00017671,2]
[369587506,1751632254523,-500.0,0.00017671,2]
[369587508,1751632254533,-500.0,0.00017671,2]
[369587510,1751632254542,-500.0,0.00017671,2]
[369587512,1751632254551,-500.0,0.00017671,2]
[369587513,1751632254560,-500.0,0.00017671,2]
[369587514,1751632254570,-500.0,0.00017671,2]
[369587515,1751632254579,-247.59573586,0.00017671,2]
[369587516,1751632254588,-500.0,0.00017671,2]
[369587517,1751632254598,-500.0,0.00017671,2]
[369587518,1751632254607,-500.0,0.00017671,2]
[369587519,1751632254616,-500.0,0.00017671,2]
[369587520,1751632254625,-500.0,0.00017671,2]
[369587521,1751632254634,-500.0,0.00017671,2]
[369587522,1751632254643,-500.0,0.00017671,2]
[369587523,1751632254654,-500.0,0.00017671,2]
[369587524,1751632254663,-500.0,0.00017671,2]
[369587526,1751632254673,-500.22176012,0.00017671,2]
[369587528,1751632254682,-500.0,0.00017671,2]
[369587530,1751632254691,-500.0,0.00017671,2]
[369587532,1751632254701,-431.04243503,0.00017671,2]
[369587534,1751632254711,-500.0,0.00017671,2]
[369587536,1751632254720,-151.0,0.000177,2]
[369587538,1751632254730,-500.0,0.00017733,2]
[369587540,1751632254740,-500.0,0.00017733,2]
[369587542,1751632254750,-500.0,0.00017733,2]
[369587544,1751632254759,-294.62291768,0.00017733,2]
[369587546,1751632254770,-500.0,0.00017733,2]
[369587548,1751632254779,-500.0,0.00017733,2]
[369587550,1751632254789,-168.0,0.00017745,2]
[369587552,1751632254799,-500.0,0.00017759,2]
[369587554,1751632254808,-543.03237872,0.00017759,2]
[369587556,1751632254818,-500.0,0.00017759,2]
[369587558,1751632254827,-502.45500882,0.00017759,2]
[369587560,1751632254837,-500.0,0.00017759,2]
[369587562,1751632254846,-190.63004398,0.00017759,2]
[369587564,1751632254855,-500.0,0.00017759,2]
[369587566,1751632254865,-500.0,0.00017793,2]
[369587568,1751632254874,-501.18491003,0.00017793,2]
[369587570,1751632254883,-500.0,0.00017793,2]
[369587572,1751632254893,-500.0,0.00017793,2]
[369587574,1751632254902,-500.0,0.00017793,2]
[369587576,1751632254911,-500.6418898,0.00017793,2]
[369587578,1751632254920,-501.12958452,0.00017793,2]
[369587580,1751632254930,-257.23822113,0.00017793,2]
[369587582,1751632254940,-215.0738,0.00017797,2]
[369587584,1751632254951,-1000.0,0.000178,5]
[369587586,1751632254962,-1000.0,0.000178,6]
[369587588,1751632254971,-151.0,0.000178,2]
[369587590,1751632254981,-151.0,0.000178,2]
[369587592,1751632254992,-151.0,0.000178,2]
[369587594,1751632255002,-930.93,0.00017808,2]
[369587596,1751632255011,-460.0,0.00017808,2]
[369587598,1751632255021,-460.0,0.00017808,2]
[369587600,1751632255030,-460.0,0.00017808,2]
[369587602,1751632255040,-460.0,0.00017808,2]
[369587604,1751632255050,-460.0,0.00017808,2]
[369587605,1751632255059,-460.0,0.00017808,2]
[369587607,1751632255069,-460.0,0.00017808,2]
[369587609,1751632255080,-460.0,0.00017808,2]
[369587611,1751632255090,-460.0,0.00017808,2]
[369587613,1751632255099,-460.0,0.00017808,2]
[369587615,1751632255109,-460.0,0.00017808,2]
[369587617,1751632255118,-460.0,0.00017808,2]
[369587619,1751632255128,-460.0,0.00017808,2]
[369587621,1751632255138,-504.34976541,0.00017808,2]
[369587624,1751632255148,-460.0,0.00017808,2]
[369587626,1751632255158,-460.0,0.00017808,2]
[369587628,1751632255167,-460.0,0.00017808,2]
[369587629,1751632255177,-645.14,0.00017808,2]
[369587631,1751632255187,-460.0,0.00017808,2]
[369587634,1751632255199,-607.6327046,0.00017808,2]
[369587636,1751632255209,-922.62,0.00017808,2]
[369587638,1751632255219,-460.0,0.00017808,2]
[369587640,1751632255229,-698.72,0.00017808,2]
[369587642,1751632255240,-460.0,0.00017808,2]
[369587644,1751632255250,-794.9,0.00017808,2]
[369587646,1751632255259,-460.0,0.00017808,2]
[369587648,1751632255268,-460.0,0.00017808,2]
[369587650,1751632255278,-460.0,0.00017808,2]
[369587652,1751632255288,-783.35,0.00017808,2]
[369587654,1751632255298,-460.0,0.00017808,2]
[369587656,1751632255308,-460.0,0.00017808,2]
[369587658,1751632255318,-460.0,0.00017808,2]
[369587660,1751632255327,-460.0,0.00017808,2]
[369587662,1751632255336,-460.0,0.00017808,2]
[369587664,1751632255346,-460.0,0.00017808,2]
[369587665,1751632255355,-460.0,0.00017808,2]
[369587667,1751632255365,-460.0,0.00017808,2]